No. of Trans,Dept Family,Entity Name,Cert Date,Supplier Name,Reference,Gross Amt,Group/Department,Type of Expenditure - Subjective Codes,
1,DCMS,EH,15/09/2011,D and A 2010 and D and A 2011 Ltd,0020020916,"73,902.60",Resources Group - Operational Estates,RUNNING COSTS - Rent - Operating Leases,
2,DCMS,EH,05/09/2011,The Colourhouse Ltd,0020017281,400.00,Heritage Protection & Planning Group - Heritage Protection & Planning Centre,TOTAL STOCK - Finished Guidebooks,
3,DCMS,EH,05/09/2011,The Colourhouse Ltd,0020017281,"28,950.00",Heritage Protection & Planning Group - Heritage Protection & Planning Centre,TOTAL STOCK - Finished Guidebooks,
4,DCMS,EH,09/09/2011,Wessex Archaeology,0020017422,"50,000.00",Heritage Protection & Planning Group - Heritage Protection Department,OPERATIONAL COSTS - Maritime Consultants,
5,DCMS,EH,15/09/2011,Knight Frank LLP,0020021639,"16,747.36",Resources Group - Operational Estates,RUNNING COSTS - Building Service Charges,
6,DCMS,EH,15/09/2011,Knight Frank LLP,0020021639,"45,353.70",Resources Group - Operational Estates,RUNNING COSTS - Rent - Operating Leases,
7,DCMS,EH,28/09/2011,E Bowman and Sons Ltd,0020022409,"43,764.00",Heritage Protection & Planning Group - National Planning Department,OPERATIONAL COSTS - Works for Heritage Buildings,
8,DCMS,EH,21/09/2011,Gillards Worldwide,0020021455,"79,437.95",National Collections Group - Retail Dept,OPERATIONAL COSTS - Storage & warehousing,
9,DCMS,EH,16/09/2011,Historic Property Restoration Ltd,0020020425,"2,081.57",National Collections Group - Property Maintenance Programme,OPERATIONAL COSTS - Leased Accomodation Maint,
10,DCMS,EH,16/09/2011,Historic Property Restoration Ltd,0020020425,"1,042.89",National Collections Group - Property Maintenance Programme,OPERATIONAL COSTS - Leased Accomodation Maint,
11,DCMS,EH,16/09/2011,Historic Property Restoration Ltd,0020020425,"16,679.33",National Collections Group - Property Maintenance Programme,OPERATIONAL COSTS - Annual Cyclical Works-Building,
12,DCMS,EH,16/09/2011,Historic Property Restoration Ltd,0020020425,"1,457.83",National Collections Group - Property Maintenance Programme,OPERATIONAL COSTS - Annual Cyclical Works-Building,
13,DCMS,EH,16/09/2011,Historic Property Restoration Ltd,0020020425,"23,774.02",National Collections Group - Property Maintenance Programme,OPERATIONAL COSTS - Annual Cyclical Work M & E,
14,DCMS,EH,16/09/2011,Historic Property Restoration Ltd,0020020425,"1,052.17",National Collections Group - Property Maintenance Programme,OPERATIONAL COSTS - Annual Cyclical Work M & E,
15,DCMS,EH,16/09/2011,Historic Property Restoration Ltd,0020020427,"11,040.50",National Collections Group - Property Maintenance Programme,OPERATIONAL COSTS - Responsive Maint Building,
16,DCMS,EH,16/09/2011,Historic Property Restoration Ltd,0020020427,"1,623.40",National Collections Group - Property Maintenance Programme,OPERATIONAL COSTS - Responsive Maint Building,
17,DCMS,EH,16/09/2011,Historic Property Restoration Ltd,0020020427,"18,258.61",National Collections Group - Property Maintenance Programme,OPERATIONAL COSTS - Responsive Repairs M & E,
18,DCMS,EH,16/09/2011,Historic Property Restoration Ltd,0020020427,329.02,National Collections Group - Property Maintenance Programme,OPERATIONAL COSTS - Responsive Repairs M & E,
19,DCMS,EH,16/09/2011,Historic Property Restoration Ltd,0020020427,"1,152.17",National Collections Group - Property Maintenance Programme,OPERATIONAL COSTS - Leased Accomodation Maint,
20,DCMS,EH,16/09/2011,Historic Property Restoration Ltd,0020020427,"2,397.27",National Collections Group - Property Maintenance Programme,OPERATIONAL COSTS - Planned Maintenance,
21,DCMS,EH,19/09/2011,Greenwich Council,0020022471,"36,908.79",National Collections Group - Historic Properties Department,RUNNING COSTS - Rates & CILOR,
22,DCMS,EH,15/09/2011,Ratcliffes,0020020915,"283,500.00",Resources Group - Operational Estates,RUNNING COSTS - Rent - Operating Leases,
23,DCMS,EH,01/09/2011,Ward and Co Building Cons Ltd,0020019795,"32,785.10",National Collections Group - Site Conservation Programme,OPERATIONAL COSTS - Works for Heritage Buildings,
24,DCMS,EH,21/09/2011,EDF Energy,0020021264,31.48,Resources Group - Human Resources Dept,RUNNING COSTS - Electricity,
25,DCMS,EH,21/09/2011,EDF Energy,0020021264,"25,191.73",Resources Group - Human Resources Dept,RUNNING COSTS - Electricity,
26,DCMS,EH,30/09/2011,Donovan O'Farrell,0020023692,"54,750.00",Resources Group - Operational Estates,RUNNING COSTS - Rent - Operating Leases,
27,DCMS,EH,12/09/2011,National Audit Office,0020020172,"63,000.00",Resources Group - Finance & Procurement Department,OTHER EXPENDITURE - Audit Fee,
28,DCMS,EH,26/09/2011,Prudential Property Investment  Managers,0020022927,"37,724.00",Resources Group - Operational Estates,RUNNING COSTS - Building Service Charges,
29,DCMS,EH,26/09/2011,Prudential Property Investment  Managers,0020022927,"55,303.25",Resources Group - Operational Estates,RUNNING COSTS - Rent - Operating Leases,
30,DCMS,EH,26/09/2011,Prudential Property Investment  Managers,0020022931,"99,785.00",Resources Group - Operational Estates,RUNNING COSTS - Building Service Charges,
31,DCMS,EH,26/09/2011,Prudential Property Investment  Managers,0020022931,"186,401.50",Resources Group - Operational Estates,RUNNING COSTS - Rent - Operating Leases,
32,DCMS,EH,05/09/2011,Enterprise Rent A Car UK Ltd,0020020885,"27,364.95",Resources Group - Corporate,RUNNING COSTS - Car Hire,
33,DCMS,EH,15/09/2011,Walter Lilly and Co Ltd,0020018590,"64,800.16",National Collections Group - Property Investment Programme,OPERATIONAL COSTS - Works for Heritage Buildings,
34,DCMS,EH,19/09/2011,BRB Residuary Ltd,0020021043,"9,345.00",Resources Group - Operational Estates,RUNNING COSTS - Building Service Charges,
35,DCMS,EH,19/09/2011,BRB Residuary Ltd,0020021043,"22,747.50",Resources Group - Operational Estates,RUNNING COSTS - Rent - Operating Leases,
36,DCMS,EH,28/09/2011,Halcrow Group Ltd,0020022505,"29,066.57",National Collections Group - Property Investment Programme,NET WIP MOVEMENT - WIP Professional Works Advice,
37,DCMS,EH,21/09/2011,Kier Southern,0020019033,"76,050.00",National Collections Group - Property Investment Programme,NET WIP MOVEMENT - WIP Refurb & Fitting Out,
38,DCMS,EH,30/09/2011,Capita Secure Information Systems Ltd,0020021090,"329,554.80",Resources Group - IMT Dept,RUNNING COSTS - ITFM,
39,DCMS,EH,12/09/2011,Southampton City Council,0090512000,"34,210.00",Heritage Protection & Planning Group - National Planning Department,GRANTS PAYABLE - HISTORIC BUILDINGS,
40,DCMS,EH,26/09/2011,High Peak Borough Council,0090512067,"40,237.10",Heritage Protection & Planning Group - National Planning Department,GRANTS PAYABLE - AREA,
41,DCMS,EH,19/09/2011,Medway Council,0090512022,"25,000.00",Heritage Protection & Planning Group - National Planning Department,GRANTS PAYABLE - OTHER GRANTS,
42,DCMS,EH,05/09/2011,Christ Church North Brixton,0090511984,"54,500.00",Heritage Protection & Planning Group - National Planning Department,GRANTS PAYABLE - PLACES OF WORSHIP,
43,DCMS,EH,21/09/2011,St Pauls Peel PCC,0090512044,"80,390.00",Heritage Protection & Planning Group - National Planning Department,GRANTS PAYABLE - PLACES OF WORSHIP,
44,DCMS,EH,15/09/2011,Lowther Castle Project Co Ltd,0090512017,"26,795.00",Heritage Protection & Planning Group - National Planning Department,GRANTS PAYABLE - HISTORIC BUILDINGS,
45,DCMS,EH,12/09/2011,St Marys Church PCC Bartlow,0090512004,"42,300.00",Heritage Protection & Planning Group - National Planning Department,GRANTS PAYABLE - PLACES OF WORSHIP,
46,DCMS,EH,26/09/2011,Wainfleet All Saints Church,0090512068,"48,000.00",Heritage Protection & Planning Group - National Planning Department,GRANTS PAYABLE - PLACES OF WORSHIP,
47,DCMS,EH,15/09/2011,St Nicholas Church Whiston,0090512014,"55,193.00",Heritage Protection & Planning Group - National Planning Department,GRANTS PAYABLE - PLACES OF WORSHIP,
48,DCMS,EH,28/09/2011,West Dorset District Council,0090512071,"32,000.00",Heritage Protection & Planning Group - National Planning Department,GRANTS PAYABLE - HISTORIC BUILDINGS
49,DCMS,EH,12/09/2011,PCC of St Mary's Dilwyn,0090511997,"31,950.00",Heritage Protection & Planning Group - National Planning Department,GRANTS PAYABLE - PLACES OF WORSHIP
50,DCMS,EH,21/09/2011,PCC of Great & Little Wigborough,0090512039,"1,500.00",Heritage Protection & Planning Group - National Planning Department,GRANTS PAYABLE - PLACES OF WORSHIP
51,DCMS,EH,21/09/2011,PCC of Great & Little Wigborough,0090512039,"44,741.00",Heritage Protection & Planning Group - National Planning Department,GRANTS PAYABLE - PLACES OF WORSHIP
52,DCMS,EH,28/09/2011,All Saints Longhope PCC,0090512070,"35,270.00",Heritage Protection & Planning Group - National Planning Department,GRANTS PAYABLE - PLACES OF WORSHIP
53,DCMS,EH,30/09/2011,Royal Borough Kensington & Chelsea,0090512079,"37,500.00",Heritage Protection & Planning Group - National Planning Department,GRANTS PAYABLE - HISTORIC BUILDINGS
54,DCMS,EH,26/09/2011,Tatterford PCC,0090512064,"15,250.00",Heritage Protection & Planning Group - National Planning Department,GRANTS PAYABLE - PLACES OF WORSHIP
55,DCMS,EH,26/09/2011,Tatterford PCC,0090512064,"12,950.00",Heritage Protection & Planning Group - National Planning Department,GRANTS PAYABLE - PLACES OF WORSHIP
56,DCMS,EH,26/09/2011,St Matthew's PCC,0090512062,"55,000.00",Heritage Protection & Planning Group - National Planning Department,GRANTS PAYABLE - PLACES OF WORSHIP
57,DCMS,EH,12/09/2011,Foulden PCC,0090512003,"55,000.00",Heritage Protection & Planning Group - National Planning Department,GRANTS PAYABLE - PLACES OF WORSHIP
58,DCMS,EH,15/09/2011,"PCC of St Edmund, Thurne",0090512007,"32,200.00",Heritage Protection & Planning Group - National Planning Department,GRANTS PAYABLE - PLACES OF WORSHIP
59,DCMS,EH,26/09/2011,Sturry Dist Anglican Methodist Chu,0090512060,"8,000.00",Heritage Protection & Planning Group - National Planning Department,GRANTS PAYABLE - PLACES OF WORSHIP
60,DCMS,EH,26/09/2011,Sturry Dist Anglican Methodist Chu,0090512060,"26,000.00",Heritage Protection & Planning Group - National Planning Department,GRANTS PAYABLE - PLACES OF WORSHIP
61,DCMS,EH,05/09/2011,PCC of Wherwell,0090511988,"57,600.00",Heritage Protection & Planning Group - National Planning Department,GRANTS PAYABLE - PLACES OF WORSHIP
62,DCMS,EH,26/09/2011,PCC of St Wilfrid's Church,0090512057,"30,000.00",Heritage Protection & Planning Group - National Planning Department,GRANTS PAYABLE - PLACES OF WORSHIP
63,DCMS,EH,19/09/2011,"St Nicholas Church, Warwick PCC",0090512026,"32,850.00",Heritage Protection & Planning Group - National Planning Department,GRANTS PAYABLE - PLACES OF WORSHIP
64,DCMS,EH,21/09/2011,St George & All Saints PCC,0090512048,"46,906.00",Heritage Protection & Planning Group - National Planning Department,GRANTS PAYABLE - PLACES OF WORSHIP
65,DCMS,EH,05/09/2011,Houghton Conquest PCC,0090511990,"32,506.00",Heritage Protection & Planning Group - National Planning Department,GRANTS PAYABLE - PLACES OF WORSHIP
66,DCMS,EH,15/09/2011,Coveney PCC,0090512008,"29,700.00",Heritage Protection & Planning Group - National Planning Department,GRANTS PAYABLE - PLACES OF WORSHIP
67,DCMS,EH,12/09/2011,Ruardean PCC,0090511994,"33,750.00",Heritage Protection & Planning Group - National Planning Department,GRANTS PAYABLE - PLACES OF WORSHIP
68,DCMS,EH,12/09/2011,Hook Norton with Great Rollright & Swerford PCC,0090512001,"33,500.00",Heritage Protection & Planning Group - National Planning Department,GRANTS PAYABLE - PLACES OF WORSHIP
69,DCMS,EH,21/09/2011,PCC of High Bickington,0090512041,"32,000.00",Heritage Protection & Planning Group - National Planning Department,GRANTS PAYABLE - PLACES OF WORSHIP
70,DCMS,EH,21/09/2011,PCC of High Bickington,0090512041,"49,070.00",Heritage Protection & Planning Group - National Planning Department,GRANTS PAYABLE - PLACES OF WORSHIP
71,DCMS,EH,21/09/2011,Kings Beck PCC,0090512043,"65,250.00",Heritage Protection & Planning Group - National Planning Department,GRANTS PAYABLE - PLACES OF WORSHIP
72,DCMS,EH,15/09/2011,All Hallows Church Allerton,0090512013,"35,801.00",Heritage Protection & Planning Group - National Planning Department,GRANTS PAYABLE - PLACES OF WORSHIP
73,DCMS,EH,30/09/2011,London Borough of Tower Hamlets,0090512086,"51,000.00",Heritage Protection & Planning Group - National Planning Department,GRANTS PAYABLE - HISTORIC BUILDINGS
74,DCMS,EH,30/09/2011,PCC St Barnabas Sutton,0090512078,"15,000.00",Heritage Protection & Planning Group - National Planning Department,GRANTS PAYABLE - PLACES OF WORSHIP
75,DCMS,EH,30/09/2011,PCC St Barnabas Sutton,0090512078,"32,700.00",Heritage Protection & Planning Group - National Planning Department,GRANTS PAYABLE - PLACES OF WORSHIP
76,DCMS,EH,19/09/2011,Alderley Edge Methodist Church,0090512023,"47,000.00",Heritage Protection & Planning Group - National Planning Department,GRANTS PAYABLE - PLACES OF WORSHIP
